bitfinex/quotes_SOLUSD_20250726
["timestamp","ask_amount","ask_price","bid_price","bid_amount"]
[1753569053336,0.03,185.86,185.85,12.5779627]
[1753569054449,0.03,185.86,185.85,12.4879627]
[1753569055135,0.03,185.86,185.83,5.38104196]
[1753569055320,0.03,185.86,185.85,6.82295622]
[1753569058557,0.75,185.86,185.85,6.82295622]
[1753569058929,0.75,185.86,185.82,0.28432314]
[1753569059129,0.03,185.86,185.85,6.82295622]
[1753569059851,0.75,185.86,185.85,6.82295622]
[1753569060346,0.75,185.86,185.82,6.82295622]
[1753569060651,0.72,185.85,185.83,6.82295622]
[1753569060945,0.72,185.85,185.84,6.82295622]
[1753569061944,0.03,185.86,185.84,6.82295622]
[1753569062249,0.03,185.86,185.85,6.82295622]
[1753569063234,0.75,185.86,185.85,6.82295622]
[1753569064732,6.13039384,185.86,185.84,6.82295622]
[1753569064931,0.72,185.85,185.8,5.38208365]
[1753569065126,0.72,185.84,185.83,6.82295622]
[1753569065448,0.72,185.84,185.8,0.28432314]
[1753569065845,5.41039384,185.86,185.83,6.82295622]
[1753569066049,0.03,185.86,185.82,6.82295622]
[1753569066242,4.02425482,185.86,185.82,6.82295622]
[1753569066445,4.71463755,185.85,185.82,6.82295622]
[1753569066643,0.03,185.86,185.82,6.82295622]
[1753569066945,0.72,185.84,185.82,6.82295622]
[1753569067431,6.10108424,185.84,185.82,6.82295622]
[1753569067637,5.38108424,185.84,185.82,6.82295622]
[1753569067936,0.72,185.83,185.82,6.82295622]
[1753569069443,5.38074289,185.85,185.82,6.82295622]
[1753569069643,4.00131304,185.84,185.83,6.82295622]
[1753569069935,4.72131304,185.84,185.83,6.82295622]
[1753569070141,4.72131304,185.84,185.82,6.82295622]
[1753569070341,4.00131304,185.84,185.82,6.82295622]
[1753569070548,0.72,185.83,185.82,6.82295622]
[1753569071246,4.00131304,185.84,185.82,6.82295622]
[1753569071448,4.72131304,185.84,185.82,6.82295622]
[1753569071651,4.72131304,185.84,185.83,6.82295622]
[1753569071846,4.00131304,185.84,185.83,6.82295622]
[1753569072054,0.75,185.86,185.83,6.82295622]
[1753569072235,4.75541247,185.86,185.84,6.82295622]
[1753569072439,4.75541247,185.86,185.85,6.82295622]
[1753569072850,4.75541247,185.86,185.85,4.2662736]
[1753569073056,4.03541247,185.86,185.85,4.2662736]
[1753569073367,0.03,185.86,185.85,4.2662736]
[1753569073863,0.75,185.86,185.85,4.2662736]
[1753569074160,0.75,185.86,185.84,4.2662736]
[1753569074337,0.72,185.85,185.84,4.2662736]
[1753569075865,0.72,185.85,185.82,4.2662736]
[1753569076067,0.72,185.85,185.81,4.2662736]
[1753569077262,6.10068334,185.85,185.81,4.2662736]
[1753569077454,5.41039384,185.86,185.81,4.2662736]
[1753569077753,0.72,185.84,185.81,4.2662736]
[1753569077957,0.72,185.83,185.77,0.06]
[1753569078161,4.9862736,185.83,185.77,4.3262736]
[1753569078360,0.72,185.82,185.77,4.3262736]
[1753569079152,5.38184166,185.81,185.77,4.3262736]
[1753569079460,0.72,185.8,185.77,4.3262736]
[1753569079655,5.38184166,185.81,185.77,0.06]
[1753569079856,0.72,185.79,185.77,0.06]
[1753569080441,0.72,185.78,185.77,0.06]
[1753569081439,6.10271073,185.78,185.77,0.06]
[1753569081643,0.72,185.78,185.77,0.06]
[1753569081844,6.10213132,185.8,185.77,0.06]
[1753569082268,0.72,185.79,185.77,0.06]
[1753569082955,0.72,185.78,185.77,0.06]
[1753569083674,5.38260972,185.79,185.77,0.06]
[1753569083852,0.72,185.8,185.77,0.06]
[1753569084055,72.85778498,185.84,185.79,4.2662736]
[1753569084056,0.72,185.82,185.79,4.2662736]
[1753569084355,0.66,185.85,185.81,4.2662736]
[1753569084663,0.66,185.85,185.82,4.2662736]
[1753569084869,0.66,185.84,185.83,4.2662736]
[1753569085266,0.66,185.84,185.82,4.2662736]
[1753569085472,6.99001524,185.86,185.81,4.2662736]
[1753569085473,0.66,185.83,185.81,4.2662736]
[1753569085945,6.04076081,185.85,185.81,4.2662736]
[1753569086147,0.66,185.84,185.81,4.2662736]
[1753569086562,0.66,185.83,185.81,4.2662736]
[1753569087155,6.04070025,185.85,185.81,4.2662736]
[1753569087354,6.04070025,185.85,185.82,4.2662736]
[1753569088584,5.38070025,185.85,185.82,4.2662736]
[1753569088764,0.66,185.84,185.78,0.09]
[1753569089085,0.66,185.84,185.81,4.2662736]
[1753569089252,0.66,185.83,185.81,4.2662736]
[1753569089696,6.04070025,185.85,185.81,4.2662736]
[1753569089870,5.38070025,185.85,185.81,4.2662736]
[1753569090067,0.66,185.84,185.81,4.2662736]
[1753569090283,0.66,185.84,185.82,4.2662736]
[1753569090785,0.66,185.83,185.81,4.2662736]
[1753569091651,0.66,185.82,185.77,5.72727925]
[1753569091848,0.66,185.82,185.8,4.2662736]
[1753569092075,5.38114949,185.84,185.77,5.72727925]
[1753569092076,0.66,185.81,185.79,4.2662736]
[1753569092259,5.38114949,185.84,185.79,4.2662736]
[1753569092460,0.66,185.8,185.79,4.2662736]
[1753569092658,0.66,185.8,185.78,4.2662736]
[1753569095684,5.38187358,185.81,185.78,4.2662736]
[1753569095858,5.38126244,185.83,185.78,4.2662736]
[1753569096061,0.66,185.81,185.78,4.2662736]
[1753569096480,5.38126244,185.83,185.78,4.2662736]
[1753569096481,0.66,185.82,185.78,4.2662736]
[1753569097385,0.66,185.82,185.77,0.06]
[1753569097592,0.66,185.82,185.78,4.2662736]
[1753569097762,5.38126244,185.83,185.78,4.2662736]
[1753569097763,0.66,185.81,185.78,4.2662736]
[1753569099866,6.04126244,185.83,185.78,4.2662736]
[1753569100089,5.38126244,185.83,185.78,4.2662736]
[1753569100396,0.66,185.83,185.81,4.2662736]
[1753569100562,0.66,185.85,185.82,4.2662736]
[1753569101056,0.66,185.84,185.82,4.2662736]
[1753569102483,0.03,185.85,185.82,4.2662736]
[1753569102767,0.66,185.84,185.82,4.2662736]
[1753569104694,0.03,185.85,185.83,4.2662736]
[1753569104995,0.03,185.85,185.84,4.2662736]
[1753569105296,0.03,185.85,185.84,4.55059674]
[1753569105502,0.03,185.85,185.84,4.64059674]
[1753569106002,0.03,185.85,185.84,0.37432314]
[1753569106302,0.03,185.85,185.84,4.64059674]
[1753569106672,0.03,185.85,185.84,10.02156961]
[1753569106994,0.03,185.85,185.84,9.93156961]
[1753569107184,0.03,185.85,185.84,10.02156961]
[1753569107881,0.03,185.85,185.84,9.93156961]
[1753569108383,0.03,185.85,185.84,10.02156961]
[1753569109078,0.03,185.85,185.84,52.80625358]
[1753569110496,0.03,185.85,185.84,95.24625358]
[1753569110699,0.03,185.88,185.87,42.78468397]
[1753569110995,0.03,185.88,185.87,47.33528071]
[1753569111178,0.03,185.88,185.87,47.42528071]
[1753569111784,0.03,185.88,185.87,43.15900711]
[1753569111989,0.03,185.88,185.87,35.93070111]
[1753569112190,0.03,185.88,185.87,4.2662736]
[1753569112473,0.03,185.88,185.8,17.72088995]
[1753569112474,0.69,185.88,185.86,4.2662736]
[1753569112668,0.69,185.88,185.79,1.5574]
[1753569112669,0.69,185.88,185.83,4.2662736]
[1753569112894,4.9562736,185.88,185.82,4.2662736]
[1753569113074,0.66,185.87,185.82,4.2662736]
[1753569113677,0.66,185.87,185.83,4.2662736]
[1753569113883,5.38039384,185.86,185.83,4.2662736]
[1753569114093,0.66,185.85,185.83,4.2662736]
[1753569114274,0.68,185.84,185.83,4.2662736]
[1753569115096,0.68,185.84,185.82,4.2662736]
[1753569115389,5.38076837,185.85,185.82,4.2662736]
[1753569115633,0.68,185.83,185.78,0.06]
[1753569115786,0.68,185.83,185.79,4.2662736]
[1753569116798,6.06140123,185.83,185.8,4.2662736]
[1753569116977,0.68,185.82,185.81,4.2662736]
[1753569117777,0.68,185.82,185.8,4.2662736]
[1753569118180,5.38132513,185.83,185.8,4.2662736]
[1753569118476,0.68,185.81,185.8,4.2662736]
[1753569119285,6.06184166,185.81,185.8,4.2662736]
[1753569119480,6.06184166,185.81,185.78,0.06]
[1753569119683,0.68,185.8,185.78,0.06]
[1753569120686,0.68,185.79,185.78,0.06]
[1753569121000,5.38160059,185.82,185.78,0.06]
[1753569121188,0.68,185.83,185.81,4.2662736]
[1753569122106,0.68,185.82,185.81,4.2662736]
[1753569122402,0.68,185.82,185.8,4.2662736]
[1753569122695,0.68,185.81,185.79,4.2662736]
[1753569122898,0.68,185.81,185.78,0.06]
[1753569123284,0.68,185.81,185.79,4.2662736]
[1753569123480,11.21548999,185.85,185.79,4.2662736]
[1753569123691,0.68,185.8,185.79,4.2662736]
[1753569124723,0.68,185.8,185.78,4.3262736]
[1753569125300,0.68,185.79,185.78,0.06]
[1753569128013,31.38127503,185.83,185.78,4.3262736]
[1753569128307,0.68,185.82,185.8,4.2662736]
[1753569131218,5.8345736,185.85,185.79,4.2662736]
[1753569131520,0.68,185.81,185.79,4.2662736]
[1753569132015,0.68,185.81,185.78,0.06]
[1753569132203,0.68,185.81,185.79,4.2662736]
[1753569132613,5.38097287,185.84,185.79,4.2662736]
[1753569132922,5.38097287,185.84,185.78,0.06]
[1753569132923,0.68,185.8,185.78,0.06]
[1753569133607,4.2662736,185.83,185.78,0.06]
[1753569133816,0.68,185.79,185.78,0.06]
[1753569138339,5.38157842,185.82,185.78,4.3262736]
[1753569138643,0.68,185.82,185.78,4.3262736]
[1753569138814,0.68,185.81,185.78,4.3262736]
[1753569139420,0.68,185.8,185.78,4.3262736]
[1753569139619,0.68,185.82,185.78,4.3262736]
[1753569139814,5.38154053,185.83,185.78,4.3262736]
[1753569140019,0.68,185.81,185.78,4.3262736]
[1753569140331,5.38154053,185.83,185.78,4.3262736]
[1753569140332,0.68,185.8,185.78,4.3262736]
[1753569140531,0.68,185.8,185.79,4.2662736]
[1753569143017,0.68,185.83,185.79,4.2662736]
[1753569143326,0.68,185.83,185.81,4.2662736]
[1753569143704,0.68,185.85,185.81,4.2662736]
[1753569144037,0.68,185.85,185.83,4.2662736]
[1753569144818,43.09,185.87,185.84,4.2662736]
[1753569145019,0.03,185.88,185.86,4.2662736]
[1753569145337,0.74,185.88,185.86,4.2662736]
[1753569145507,0.71,185.87,185.85,4.2662736]
[1753569146407,5.40982988,185.88,185.85,4.2662736]
[1753569146616,0.71,185.86,185.85,4.2662736]
[1753569146817,0.71,185.86,185.84,4.2662736]
[1753569147319,0.71,185.86,185.85,4.2662736]
[1753569147522,0.71,185.86,185.83,4.2662736]
[1753569147715,0.71,185.86,185.82,4.2662736]
[1753569148114,6.09051687,185.86,185.81,4.2662736]
[1753569148324,0.71,185.85,185.8,4.2662736]
[1753569148529,0.71,185.84,185.81,4.2662736]
[1753569149029,6.09051687,185.86,185.82,4.2662736]
[1753569149834,0.71,185.85,185.82,4.2662736]
[1753569150615,0.03,185.87,185.84,4.2662736]
[1753569150815,0.03,185.87,185.85,4.2662736]
[1753569151015,0.74,185.87,185.85,4.2662736]
[1753569151617,0.03,185.87,185.85,4.2662736]
[1753569151825,0.71,185.86,185.84,4.2662736]
[1753569152132,0.03,185.87,185.84,4.2662736]
[1753569152310,0.74,185.87,185.84,4.2662736]
[1753569152518,0.71,185.86,185.84,4.2662736]
[1753569152927,0.71,185.85,185.84,4.2662736]
[1753569153519,0.71,185.85,185.82,4.2662736]
[1753569153719,0.71,185.84,185.82,4.2662736]
[1753569156040,6.12022996,185.87,185.83,4.2662736]
[1753569156216,0.71,185.86,185.83,4.2662736]
[1753569156412,0.71,185.85,185.8,5.75639861]
[1753569156625,0.71,185.84,185.83,4.2662736]
[1753569156825,0.71,185.86,185.83,4.2662736]
[1753569157526,0.71,185.85,185.83,4.2662736]
[1753569159427,0.71,185.84,185.83,4.2662736]
[1753569160249,0.71,185.84,185.78,0.06]
[1753569160544,10.35744355,185.84,185.79,4.3262736]
[1753569160748,0.71,185.83,185.79,4.3262736]
[1753569161942,0.71,185.83,185.79,0.06]
[1753569162541,5.38155203,185.82,185.79,0.06]
[1753569162947,0.71,185.81,185.79,0.06]
[1753569165044,5.38155203,185.82,185.79,0.06]
[1753569165250,0.71,185.8,185.79,0.06]
[1753569168356,6.09213132,185.8,185.79,0.06]
[1753569168650,10.35840492,185.8,185.79,0.06]
[1753569168949,64.24276583,185.8,185.77,0.06]
[1753569169147,30.2662736,185.78,185.74,0.06]
[1753569169365,4.2662736,185.75,185.74,0.06]
[1753569169530,50.9579412,185.75,185.74,0.06]
[1753569170260,56.33822458,185.75,185.74,0.06]
[1753569171245,74.75094068,185.75,185.74,0.06]
[1753569171934,70.48466708,185.75,185.74,0.06]
[1753569172141,66.44706405,185.75,185.74,0.06]
[1753569172341,70.71333765,185.75,185.74,0.06]
[1753569173335,66.44706405,185.75,185.74,0.06]
[1753569174352,49.66238008,185.75,185.74,0.06]
[1753569179754,53.92865368,185.75,185.74,0.06]
[1753569181864,70.71333765,185.75,185.74,0.06]
[1753569182066,66.44706405,185.75,185.74,0.06]
[1753569184157,70.71333765,185.75,185.74,0.06]
[1753569185060,70.99766079,185.75,185.74,1e-08]
[1753569186479,26.0,185.72,185.71,0.06]
[1753569186655,88.89095757,185.72,185.71,0.06]
[1753569186971,89.54095757,185.72,185.71,0.06]
[1753569188179,36.3007233,185.72,185.71,0.06]
[1753569188475,73.2244497,185.72,185.71,0.06]
[1753569190564,73.8744497,185.72,185.71,0.06]
[1753569190951,73.2244497,185.72,185.71,0.06]
[1753569191869,78.1407233,185.72,185.71,0.06]
[1753569192066,94.92540727,185.72,185.71,0.06]
[1753569193562,26.0,185.68,185.66,0.06]
[1753569193763,46.0462736,185.67,185.66,0.06]
[1753569193971,52.08217331,185.67,185.66,0.06]
[1753569194964,47.16589971,185.67,185.66,0.06]
[1753569196988,47.81589971,185.67,185.66,0.06]
[1753569197573,52.08217331,185.67,185.66,0.06]
[1753569197758,47.81589971,185.67,185.66,0.06]
[1753569198699,52.08217331,185.67,185.66,0.06]
[1753569199892,47.81589971,185.67,185.66,0.06]
[1753569201692,68.86685728,185.67,185.66,0.06]
[1753569202287,72.8416769,185.67,185.66,0.06]
[1753569203280,4.2662736,185.63,185.6,0.1]
[1753569203593,41.7,185.62,185.6,0.1]
[1753569204781,47.08759934,185.62,185.6,0.1]
[1753569205588,47.80759934,185.62,185.6,0.1]
[1753569206393,26.0,185.64,185.61,4.5362736]
[1753569206592,41.68,185.63,185.61,4.2662736]
[1753569206801,41.68,185.63,185.62,0.33]
[1753569207390,41.68,185.63,185.62,0.06]
[1753569208291,47.06706028,185.63,185.62,0.06]
[1753569208478,47.78706028,185.63,185.62,0.06]
[1753569209398,47.06706028,185.63,185.62,0.06]
[1753569210294,5.38706028,185.63,185.62,0.06]
[1753569210483,41.64,185.63,185.62,0.06]
[1753569210988,47.02706028,185.63,185.62,0.06]
[1753569213091,47.74706028,185.63,185.62,0.06]
[1753569213578,47.02706028,185.63,185.62,0.06]
[1753569214582,47.74706028,185.63,185.62,0.06]
[1753569215090,47.02706028,185.63,185.62,0.06]
[1753569215612,41.64,185.63,185.62,0.06]
[1753569216907,47.74706028,185.63,185.62,0.06]
[1753569217111,47.02706028,185.63,185.62,0.06]
[1753569217414,47.74706028,185.63,185.62,0.06]
[1753569217781,68.79801785,185.63,185.62,0.06]
[1753569217987,72.78747931,185.63,185.62,0.06]
[1753569218704,98.78747931,185.63,185.62,0.06]
[1753569219074,94.79801785,185.63,185.62,0.06]
[1753569219277,98.78709365,185.63,185.62,0.06]
[1753569220208,94.79801785,185.63,185.62,0.06]
[1753569220889,98.78679489,185.63,185.62,0.06]
[1753569221085,72.78679489,185.63,185.6,0.1]
[1753569221290,72.78679489,185.63,185.6,1e-08]
[1753569221291,21.05095757,185.61,185.6,1e-08]
[1753569221506,66.60015725,185.61,185.6,1e-08]
[1753569221794,67.32015725,185.61,185.6,1e-08]
[1753569222409,63.33095757,185.61,185.6,1e-08]
[1753569223310,68.69859832,185.61,185.6,1e-08]
[1753569223506,27.15859832,185.61,185.6,1e-08]
[1753569223703,68.69859832,185.61,185.6,1e-08]
[1753569224202,73.24919506,185.61,185.6,1e-08]
[1753569224509,4.2662736,185.54,185.52,0.1]
[1753569224717,41.54,185.53,185.52,0.1]
[1753569225301,46.92996388,185.53,185.52,0.1]
[1753569226201,51.91623748,185.53,185.52,0.1]
[1753569226512,68.70092145,185.53,185.52,0.1]
[1753569227010,46.92996388,185.53,185.52,0.1]
[1753569227212,0.72,185.55,185.52,0.1]
[1753569227397,41.52,185.54,185.52,0.1]
[1753569228241,46.9097189,185.54,185.52,0.1]
[1753569230515,41.52,185.54,185.52,0.1]
[1753569231022,5.38855676,185.58,185.53,0.27]
[1753569231202,41.48,185.57,185.55,4.2662736]
[1753569231407,41.48,185.57,185.54,4.2662736]
[1753569231694,41.48,185.57,185.52,0.1]
[1753569231903,0.72,185.56,185.52,0.1]
[1753569232118,42.2,185.55,185.52,0.1]
[1753569232416,41.48,185.55,185.52,4.3662736]
[1753569232993,46.86947975,185.55,185.52,4.3662736]
[1753569233495,0.72,185.54,185.52,0.1]
[1753569233702,41.48,185.53,185.52,0.1]
[1753569235123,42.17,185.53,185.52,0.1]
[1753569236320,47.55996388,185.53,185.52,0.1]
[1753569237225,41.48,185.53,185.52,0.1]
[1753569238703,47.55996388,185.53,185.52,0.1]
[1753569240305,42.17,185.53,185.52,0.1]
[1753569241124,47.55996388,185.53,185.52,0.1]
[1753569243331,42.17,185.53,185.52,0.1]
[1753569243933,47.55996388,185.53,185.52,0.1]
[1753569245023,51.82623748,185.53,185.52,0.1]
[1753569245197,47.55996388,185.53,185.52,0.1]
[1753569246215,41.36,185.53,185.52,0.1]
[1753569246417,0.69,185.57,185.52,4.3662736]
[1753569246719,47.43909901,185.56,185.52,0.1]
[1753569246922,0.69,185.55,185.52,0.1]
[1753569247126,46.74991985,185.54,185.52,0.1]
[1753569247322,0.69,185.53,185.52,0.1]
[1753569247511,4.9562736,185.53,185.52,0.1]
[1753569247819,0.69,185.53,185.52,0.1]
[1753569248712,6.07996388,185.53,185.52,0.1]
[1753569249612,5.389732,185.54,185.52,0.1]
[1753569249815,42.03,185.53,185.52,0.1]
[1753569250008,41.34,185.53,185.52,0.1]
[1753569250812,47.41996388,185.53,185.52,0.1]
[1753569251421,51.68623748,185.53,185.52,0.1]
[1753569251827,6.07996388,185.53,185.52,0.1]
[1753569252206,47.39996388,185.53,185.52,0.1]
[1753569253133,42.01,185.53,185.52,0.1]
[1753569253317,47.39996388,185.53,185.52,0.1]
[1753569254030,31.38969344,185.54,185.52,0.1]
[1753569254330,5.38924779,185.56,185.53,4.2662736]
[1753569254628,0.69,185.58,185.55,4.2662736]
[1753569254629,41.3,185.58,185.55,4.2662736]
[1753569254802,41.3,185.58,185.57,4.2662736]
[1753569255005,0.03,185.6,185.57,4.5362736]
[1753569255206,41.33,185.6,185.57,0.27]
[1753569255423,41.33,185.6,185.58,4.2662736]
[1753569256035,0.03,185.6,185.59,4.2662736]
[1753569256640,0.03,185.6,185.58,4.2662736]
[1753569256931,0.69,185.59,185.58,4.2662736]
[1753569257238,41.97,185.59,185.57,4.2662736]
[1753569258153,41.28,185.59,185.57,4.2662736]
[1753569259121,41.28,185.59,185.58,4.2662736]
[1753569259636,0.03,185.6,185.58,4.2662736]
[1753569259937,0.03,185.6,185.59,4.5362736]
[1753569263534,0.03,185.6,185.59,4.2662736]
[1753569269826,0.72,185.6,185.59,4.2662736]
[1753569270917,47.28793103,185.6,185.57,4.2662736]
[1753569271134,4.9562736,185.59,185.54,4.2662736]
[1753569271339,0.69,185.58,185.54,4.2662736]
[1753569271541,41.16,185.57,185.54,4.2662736]
[1753569271744,0.69,185.56,185.54,4.2662736]
[1753569271933,0.69,185.55,185.54,4.2662736]
[1753569274051,0.69,185.55,185.53,0.06]
[1753569274356,41.14,185.54,185.53,0.06]
[1753569274838,41.83,185.54,185.53,0.06]
[1753569277022,77.48594698,185.54,185.53,0.06]
[1753569277229,32.07967338,185.54,185.53,0.06]
[1753569277451,73.19967338,185.54,185.53,0.06]
[1753569277653,32.07967338,185.54,185.53,0.06]
[1753569277840,73.19967338,185.54,185.53,0.06]
[1753569278041,32.07967338,185.54,185.53,0.06]
[1753569278230,73.19967338,185.54,185.53,0.06]
[1753569280559,0.69,185.56,185.53,4.3262736]
[1753569280772,41.12,185.55,185.54,4.2662736]
[1753569281954,41.1,185.55,185.54,4.2662736]
[1753569282183,41.1,185.55,185.53,0.06]
[1753569282468,41.1,185.55,185.54,4.2662736]
[1753569283865,41.08,185.55,185.54,4.2662736]
[1753569284236,32.07827543,185.59,185.54,4.2662736]
[1753569284457,41.77,185.58,185.55,4.2662736]
[1753569284685,0.69,185.57,185.53,0.06]
[1753569284894,41.08,185.56,185.53,0.06]
[1753569285192,0.69,185.55,185.53,0.06]
[1753569285385,41.08,185.54,185.53,0.06]
[1753569285691,41.77,185.54,185.53,0.06]
[1753569287292,41.08,185.54,185.53,4.3262736]
[1753569287991,41.06,185.54,185.53,4.3262736]
[1753569288390,0.69,185.58,185.53,4.5962736]
[1753569288569,41.04,185.57,185.56,4.2662736]
[1753569291499,41.73,185.57,185.55,4.2662736]
[1753569291684,0.69,185.56,185.55,4.2662736]
[1753569293481,0.69,185.56,185.53,0.06]
[1753569293482,6.07909247,185.56,185.53,0.06]
[1753569293797,0.69,185.55,185.53,4.3262736]
[1753569293980,41.02,185.54,185.53,4.3262736]
[1753569294804,41.68,185.54,185.53,0.06]
[1753569296393,0.66,185.54,185.53,0.06]
[1753569296695,41.0,185.54,185.53,0.06]
[1753569298311,41.0,185.54,185.53,4.3262736]
[1753569300311,40.96,185.54,185.53,4.3262736]
[1753569300600,26.0,185.59,185.53,9.98619086]
[1753569300803,40.96,185.57,185.53,5.44991726]
[1753569301390,40.96,185.57,185.53,5.71991726]
[1753569302002,41.62,185.57,185.56,4.2662736]
[1753569302908,0.66,185.59,185.56,4.2662736]
[1753569303091,0.03,185.6,185.58,4.2662736]
[1753569303285,0.03,185.6,185.59,4.2662736]
[1753569303489,40.97,185.6,185.59,4.2662736]
[1753569303694,41.63,185.6,185.59,4.2662736]
[1753569305493,40.97,185.6,185.59,4.2662736]
[1753569308904,41.63,185.6,185.59,4.2662736]
[1753569309294,41.63,185.6,185.58,4.2662736]
[1753569309494,0.66,185.59,185.58,4.2662736]
[1753569311987,41.54,185.59,185.58,4.2662736]
[1753569314015,40.88,185.59,185.58,4.2662736]
[1753569314922,41.54,185.59,185.58,4.2662736]
[1753569315523,41.54,185.59,185.53,26.34432314]
[1753569315827,0.66,185.58,185.53,0.06]
[1753569316125,0.66,185.58,185.53,4.3262736]
[1753569316308,4.9262736,185.58,185.53,0.06]
[1753569316506,4.9262736,185.57,185.53,0.06]
[1753569316720,40.84,185.56,185.53,0.06]
[1753569316919,41.5,185.56,185.53,0.06]
[1753569317219,0.66,185.55,185.53,0.06]
[1753569317818,6.04942517,185.55,185.53,0.06]
[1753569318207,0.66,185.54,185.53,0.06]
[1753569318412,40.84,185.56,185.53,4.3262736]
[1753569318624,40.82,185.56,185.55,4.2662736]
[1753569318831,41.48,185.56,185.55,4.2662736]
[1753569320810,46.86912274,185.56,185.53,4.3262736]
[1753569321005,0.66,185.55,185.53,4.3262736]
[1753569321328,0.66,185.54,185.53,4.3262736]
[1753569322146,0.66,185.54,185.53,0.06]
[1753569322316,0.66,185.54,185.53,4.3262736]
[1753569324928,0.66,185.54,185.53,0.06]
[1753569325528,6.04967338,185.54,185.53,0.06]
[1753569325919,10.1042041,185.54,185.53,0.06]
[1753569326243,6.10967338,185.54,185.53,0.06]
[1753569331352,0.72,185.54,185.53,0.06]
[1753569331523,40.74,185.54,185.53,4.3262736]
[1753569331868,40.74,185.57,185.53,4.5962736]
[1753569332027,40.74,185.57,185.56,4.2662736]
[1753569332424,40.72,185.59,185.56,4.2662736]
[1753569332654,40.72,185.59,185.58,4.2662736]
[1753569333536,41.44,185.59,185.58,4.2662736]
[1753569334162,41.44,185.59,185.57,4.2662736]
[1753569334453,0.72,185.58,185.56,4.2662736]
[1753569334626,40.72,185.59,185.57,4.2662736]
[1753569334829,46.10822134,185.59,185.57,4.2662736]
[1753569335326,0.72,185.58,185.57,4.2662736]
[1753569340351,0.72,185.58,185.56,4.2662736]
[1753569340545,0.72,185.57,185.56,4.2662736]
[1753569342453,0.72,185.57,185.53,0.06]
[1753569342643,0.72,185.57,185.56,4.2662736]
[1753569342832,5.38853386,185.58,185.54,4.2662736]
[1753569343035,5.38853386,185.58,185.53,4.3262736]
[1753569343447,0.72,185.57,185.53,4.3262736]
[1753569343752,40.64,185.56,185.53,4.3262736]
[1753569343924,0.72,185.55,185.53,4.3262736]
[1753569344124,0.72,185.55,185.54,4.2662736]
[1753569344530,46.02917594,185.56,185.54,4.2662736]
[1753569344950,46.74917594,185.56,185.54,4.2662736]
[1753569345759,0.72,185.55,185.54,4.2662736]
[1753569346053,6.10938291,185.55,185.53,0.06]
[1753569346551,5.38938291,185.55,185.53,0.06]
[1753569346741,0.72,185.54,185.53,0.06]
[1753569348258,6.10967338,185.54,185.53,0.06]
[1753569349649,41.36,185.56,185.53,4.3262736]
[1753569349848,46.74920077,185.56,185.53,4.3262736]
[1753569350449,41.36,185.56,185.53,4.3262736]
[1753569350655,40.64,185.56,185.55,4.2662736]
[1753569352059,40.64,185.56,185.53,4.3262736]
[1753569352060,46.74913166,185.56,185.53,4.3262736]
[1753569352263,46.02913166,185.56,185.53,4.3262736]
[1753569352449,1.22,185.55,185.53,4.3262736]
[1753569353367,0.5,185.55,185.53,4.3262736]
[1753569353552,0.5,185.55,185.54,4.2662736]
[1753569355167,1.22,185.55,185.53,4.3262736]
[1753569355349,5.88943502,185.55,185.53,4.3262736]
[1753569355666,0.72,185.54,185.53,4.3262736]
[1753569356070,5.88943502,185.55,185.53,4.3262736]
[1753569356561,6.60943502,185.55,185.53,4.3262736]
[1753569356944,1.22,185.55,185.53,4.3262736]